bitfinex-derivatives/quotes_SOLF0:USTF0_20240905
["timestamp","ask_amount","ask_price","bid_price","bid_amount"]
[1725517221042,23.29702102,132.23,132.2,0.05651694]
[1725517221640,3.7817,132.22,132.2,0.05651694]
[1725517221936,23.29702102,132.23,132.2,0.05651694]
[1725517221937,0.05702102,132.23,132.2,0.05651694]
[1725517222347,0.05702102,132.23,132.21,3.782]
[1725517223641,0.05702102,132.23,132.22,3.7817]
[1725517223840,27.0203,132.27,132.21,5.14772679]
[1725517224143,3.7806,132.26,132.21,1.3895]
[1725517224438,23.24,132.27,132.21,1.3895]
[1725517224639,23.24,132.23,132.17,1.3346]
[1725517224948,23.24,132.2,132.19,0.05737402]
[1725517225144,23.24,132.2,132.18,0.0567733]
[1725517225346,23.24,132.19,132.11,1.3194]
[1725517225739,3.7837,132.15,132.11,1.3194]
[1725517226247,0.05435499,132.14,132.12,0.05525364]
[1725517226544,0.05017031,132.14,132.12,0.05525364]
[1725517227441,0.05017031,132.14,132.12,3.83955364]
[1725517227646,0.05017031,132.14,132.12,0.05525364]
[1725517228141,0.05017031,132.14,132.13,3.7843]
[1725517239960,23.24,132.22,132.12,1.3103]
[1725517240553,3.7822,132.21,132.17,3.783]
[1725517240756,0.04805491,132.2,132.18,0.05361361]
[1725517241162,0.04805491,132.2,132.18,3.83641361]
[1725517243860,0.04805491,132.2,132.19,3.7826]
[1725517257069,0.04805491,132.2,132.18,3.83621361]
[1725517257265,9.3,132.19,132.18,3.83621361]
[1725517258468,0.04805491,132.2,132.19,3.7826]
[1725517259674,0.04805491,132.2,132.18,0.05361361]
[1725517260773,0.04805491,132.2,132.19,3.7826]
[1725517261281,1.3013,132.29,132.18,9.3]
[1725517261575,9.3,132.26,132.19,9.3]
[1725517261876,9.3,132.23,132.21,3.7818]
[1725517262377,9.34819816,132.23,132.21,3.8299901]
[1725517263579,0.04819816,132.23,132.22,3.7817]
[1725517263876,0.04819816,132.23,132.21,3.8300901]
[1725517264373,9.34819816,132.23,132.21,3.8300901]
[1725517268183,9.3,132.22,132.21,0.0481901]
[1725517271679,9.3,132.22,132.15,9.3]
[1725517271879,9.3,132.2,132.15,9.3]
[1725517272081,3.7826,132.19,132.1,3.81950223]
[1725517272278,7.61621077,132.19,132.12,9.3]
[1725517272480,9.3,132.2,132.12,9.3]
[1725517272681,0.056124,132.17,132.16,3.7832]
[1725517274285,0.056124,132.17,132.15,3.83590734]
[1725517276189,9.356124,132.17,132.15,0.05230734]
[1725517276488,13.0834,132.16,132.15,0.05230734]
[1725517277580,13.0834,132.16,132.12,3.7844]
[1725517277581,3.7837,132.15,132.12,3.7844]
[1725517277783,9.3,132.14,132.12,3.7844]
[1725517278381,3.783,132.18,132.09,3.81593884]
[1725517278587,0.0503636,132.15,132.13,9.3]
[1725517278790,9.3,132.2,132.13,13.13753501]
[1725517278992,0.04994556,132.18,132.16,3.7834]
[1725517279190,0.04994556,132.18,132.16,0.0484678]
[1725517279590,0.04994556,132.18,132.16,3.8317678]
[1725517280287,9.3,132.17,132.16,0.0484678]
[1725517280688,9.3,132.17,132.09,3.77545612]
[1725517280891,9.3,132.14,132.07,12.0042]
[1725517281387,9.3,132.14,132.11,3.7847]
[1725517281687,9.34790568,132.14,132.11,3.7847]
[1725517281898,13.13210568,132.14,132.11,0.04944881]
[1725517282096,9.3,132.13,132.11,0.04944881]
[1725517282488,3.7845,132.13,132.11,0.04944881]
[1725517282688,13.0845,132.13,132.11,0.04944881]
[1725517284093,3.7845,132.13,132.11,0.04944881]
[1725517286793,3.7846,132.12,132.11,0.04944881]
[1725517287001,23.25,132.12,131.95,7.5788]
[1725517287199,23.25,132.09,132.01,6.54913961]
[1725517287498,27.0356,132.09,132.05,3.7865]
[1725517287687,23.25,132.09,132.01,1.3428]
[1725517287887,23.25,132.09,132.02,3.75794972]
[1725517288091,0.04805241,132.06,132.05,3.7866]
[1725517288288,23.25,132.12,132.04,0.05636026]
[1725517288497,23.25,132.12,132.03,24.6292]
[1725517288693,27.05178891,132.12,132.04,3.84913137]
[1725517289288,0.04940016,132.09,132.07,0.04788221]
[1725517289902,3.83490016,132.09,132.07,0.04788221]
[1725517291102,3.7858,132.08,132.05,3.7865]
[1725517291398,3.7858,132.08,131.84,27.98030681]
[1725517291399,3.7858,132.08,131.99,27.4424]
[1725517291900,30.88501675,132.09,132.05,3.7865]
[1725517292101,0.05503459,132.08,132.05,3.7865]
[1725517292403,0.05503459,132.08,132.06,0.04998499]
[1725517296908,3.84103459,132.08,132.06,0.04998499]
[1725517299207,0.05503459,132.08,132.07,3.786]
[1725517300906,24.5686,132.16,132.06,3.81039735]
[1725517301107,28.44524697,132.16,132.05,23.25]
[1725517301307,3.7843,132.14,132.05,27.11377404]
[1725517301508,28.44524697,132.16,132.09,3.7852]
[1725517301708,3.784,132.14,132.09,3.7852]
[1725517301903,0.05709298,132.13,132.1,0.04803871]
[1725517303210,0.05709298,132.13,132.1,3.83303871]
[1725517304011,0.05709298,132.13,132.11,3.7848]
[1725517304611,0.05709298,132.13,132.1,0.04803871]
[1725517304612,0.05709298,132.13,132.1,3.83303871]
[1725517305009,0.05709298,132.13,132.1,0.04803871]
[1725517306117,0.05709298,132.13,132.11,3.7849]
[1725517310129,0.05709298,132.13,132.1,3.83303871]
[1725517310434,9.31,132.11,132.1,0.04803871]
[1725517311029,13.0949,132.11,132.1,0.04803871]
[1725517312132,3.7858,132.08,132.05,3.7864]
[1725517312328,13.0958,132.08,132.05,3.7864]
[1725517313028,13.14732804,132.08,132.05,3.84351213]
[1725517313722,0.05152804,132.08,132.06,3.7863]
[1725517314127,0.05152804,132.08,132.05,0.05711213]
[1725517314731,23.26,132.07,132.05,0.05711213]
[1725517314934,0.05152804,132.08,132.05,0.05711213]
[1725517315436,3.7861,132.07,132.05,0.05711213]
[1725517315628,23.26,132.07,132.05,0.05711213]
[1725517315831,23.26,132.07,131.85,3.49753835]
[1725517316023,23.26,132.07,131.92,23.26]
[1725517316024,2.7415,132.06,131.92,23.26]
[1725517316223,2.7415,132.06,131.93,4.0929]
[1725517316630,23.26,132.04,131.94,23.26]
[1725517316830,0.04977576,132.0,131.98,0.05797067]
[1725517317140,23.26,132.06,131.98,1.36139512]
[1725517317333,0.05407653,132.03,132.01,0.05720823]
[1725517317834,0.05407653,132.03,132.02,3.7874]
[1725517318533,3.7857,132.08,132.02,3.7874]
[1725517318734,30.76309609,132.09,132.01,23.26]
[1725517318930,23.26,132.09,132.01,23.26]
[1725517319236,23.26,132.11,132.01,23.26]
[1725517319539,0.04991214,132.07,132.05,0.05013345]
[1725517319744,0.04792063,132.07,132.05,0.05812665]
[1725517320641,23.26,132.12,132.05,0.05812665]
[1725517320941,23.26,132.12,132.05,1.3947]
[1725517321332,23.26,132.12,132.05,5.1812]
[1725517321638,0.05199523,132.1,132.07,0.05038897]
[1725517323239,23.31199523,132.1,132.07,0.05038897]
[1725517323736,3.7855,132.09,132.07,0.05038897]
[1725517324242,23.26,132.09,132.01,1.3157]
[1725517324542,23.26,132.14,132.01,1.3157]
[1725517324543,23.26,132.07,132.01,1.3157]
[1725517325438,0.05446554,132.05,132.03,0.05613574]
[1725517326033,23.31446554,132.05,132.03,0.05613574]
[1725517326444,27.10126554,132.05,132.03,0.05613574]
[1725517327234,3.84126554,132.05,132.03,0.05613574]
[1725517327444,23.31446554,132.05,132.03,0.05613574]
[1725517328939,27.10106554,132.05,132.03,0.05613574]
[1725517329145,23.31446554,132.05,132.03,0.05613574]
[1725517330435,3.7869,132.04,132.03,0.05613574]
[1725517330643,23.26,132.04,131.93,26.0095]
[1725517330937,3.7878,132.01,131.96,3.7889]
[1725517331547,0.05346866,132.0,131.97,0.04969768]
[1725517332036,3.84146866,132.0,131.97,0.04969768]
[1725517332545,0.05346866,132.0,131.97,0.04969768]
[1725517334045,0.05346866,132.0,131.99,3.7883]
[1725517335549,23.26,132.06,131.98,2.7838]
[1725517335750,23.26,132.07,131.99,1.3181]
[1725517335947,23.26,132.07,132.03,3.7869]
[1725517336445,4.1021,132.12,131.99,1.3181]
[1725517336446,0.04958528,132.06,132.05,3.7866]
[1725517336645,0.04801194,132.07,132.05,3.7866]
[1725517336846,0.04801194,132.07,132.04,3.84115013]
[1725517337451,0.04801194,132.07,132.04,0.05435013]
[1725517338247,0.04801194,132.07,132.04,3.84115013]
[1725517338553,0.04801194,132.07,132.04,0.05435013]
[1725517338752,0.04801194,132.07,132.05,3.7863]
[1725517339956,0.04801194,132.07,132.05,3.7866]
[1725517341055,0.04801194,132.07,132.04,0.05435013]
[1725517342249,0.04801194,132.07,132.05,3.7866]
[1725517343351,0.04801194,132.07,132.06,3.7863]
[1725517344858,0.04801194,132.07,132.05,3.7865]
[1725517345260,0.04801194,132.07,132.04,0.05435013]
[1725517345560,0.04801194,132.07,132.04,3.84105013]
[1725517345851,0.04801194,132.07,132.04,0.05435013]
[1725517346049,0.04801194,132.07,132.05,3.7865]
[1725517346448,0.04801194,132.07,132.06,3.7863]
[1725517349557,27.18487641,132.07,132.04,0.05435013]
[1725517349764,23.30801194,132.07,132.04,0.05435013]
[1725517350157,3.7866,132.05,132.04,0.05435013]
[1725517350762,27.12285216,132.06,131.97,4.1683]
[1725517351059,3.86285216,132.06,131.9,23.26]
[1725517351259,22.69,132.11,131.95,3.7894]
[1725517351260,3.7882,132.0,131.95,3.7894]
[1725517351459,27.0482,132.0,131.95,3.7894]
[1725517351665,23.26,132.0,131.95,3.7894]
[1725517351866,0.05513317,131.99,131.96,0.04923329]
[1725517352466,0.05513317,131.99,131.96,3.83833329]
[1725517352868,0.05513317,131.99,131.96,0.04923329]
[1725517353266,0.05513317,131.99,131.97,3.7887]
[1725517353468,0.05513317,131.99,131.97,5.1514]
[1725517353967,0.05513317,131.99,131.98,3.7886]
[1725517354175,3.7867,132.05,131.97,1.3627]
[1725517354369,23.26,132.06,131.98,1.3105]
[1725517354767,27.0465,132.06,132.01,3.7877]
[1725517355066,0.05542972,132.05,132.02,0.05518081]
[1725517355969,23.26,132.04,132.02,0.05518081]
[1725517356664,3.7872,132.03,132.02,0.05518081]
[1725517357268,3.7872,132.03,131.97,1.3627]
[1725517357269,3.7881,132.0,131.97,1.3627]
[1725517357472,23.26,132.0,131.97,1.3627]
[1725517357970,23.26,132.0,131.95,1.3105]
[1725517358476,0.05277058,131.99,131.96,0.05357122]
[1725517358970,23.26,131.98,131.96,0.05357122]
[1725517359381,27.0489,131.97,131.96,0.05357122]
[1725517359566,27.0489,131.97,131.83,23.26]
[1725517359567,23.26,131.97,131.83,23.26]
[1725517359874,3.7915,131.88,131.76,76.78088635]
[1725517360072,1.3738,131.98,131.81,1.2969]
[1725517360274,23.26,131.89,131.81,1.2969]
[1725517360670,0.05165645,131.86,131.84,0.0505938]
[1725517361773,23.31165645,131.86,131.84,0.0505938]
[1725517361971,0.05165645,131.86,131.84,0.0505938]
[1725517362169,23.31165645,131.86,131.84,0.0505938]
[1725517362772,27.10375645,131.86,131.84,0.0505938]
[1725517363372,0.05165645,131.86,131.84,0.0505938]
[1725517364773,0.05165645,131.86,131.85,3.7923]
[1725517364978,27.0503,131.93,131.84,23.26]
[1725517365167,23.26,131.93,131.84,24.6327]
[1725517365576,23.26,131.91,131.84,1.3727]
[1725517365868,0.05715835,131.89,131.86,0.05649798]
[1725517367078,0.05715835,131.89,131.87,3.7915]
[1725517367274,228.0,132.06,131.88,23.26]
[1725517367478,228.0,132.06,131.91,23.26]
[1725517367479,23.26,132.01,131.91,23.26]
[1725517367677,23.26,131.99,131.91,23.26]
[1725517367877,23.26,131.99,131.93,3.7898]
[1725517368278,0.05758134,131.97,131.95,0.05610326]
[1725517369987,23.31758134,131.97,131.95,0.05610326]
[1725517370677,0.05758134,131.97,131.95,0.05610326]
[1725517373577,29.18758134,131.97,131.95,0.05610326]
[1725517374280,3.7892,131.96,131.95,0.05610326]
[1725517374478,29.18758134,131.97,131.95,0.05610326]
[1725517374678,0.05758134,131.97,131.95,0.05610326]
[1725517375678,3.7892,131.96,131.95,0.05610326]
[1725517376286,0.05758134,131.97,131.95,0.05610326]
[1725517376784,3.84658134,131.97,131.95,0.05610326]
[1725517376979,0.05758134,131.97,131.95,0.05610326]
[1725517377386,3.7892,131.96,131.95,0.05610326]
[1725517377687,0.05758134,131.97,131.87,29.13]
[1725517377885,29.13,131.95,131.85,31.838]
[1725517378183,29.13,131.93,131.85,2.708]
[1725517378682,0.04943351,131.9,131.88,0.05667251]
[1725517380388,0.04943351,131.9,131.88,3.84797251]
[1725517381186,0.04943351,131.9,131.88,0.05667251]
[1725517384187,3.84043351,131.9,131.88,0.05667251]
[1725517384582,0.04943351,131.9,131.88,0.05667251]
[1725517385786,0.04943351,131.9,131.89,3.7912]
[1725517386086,29.13,131.95,131.86,2.8205]
[1725517386492,3.7899,131.94,131.89,3.791]
[1725517386985,0.04812209,131.93,131.9,0.05081021]
[1725517387779,0.04812209,131.93,131.91,3.7906]
[1725517387982,0.04812209,131.93,131.9,0.05081021]
[1725517388689,0.04812209,131.93,131.92,3.7903]
[1725517391082,30.4599,131.99,131.89,29.13]
[1725517391291,29.13,132.01,131.89,29.13]
[1725517391479,3.7882,132.0,131.89,29.13]
[1725517391683,3.7882,132.0,131.95,3.7893]
[1725517391888,3.7882,132.0,131.89,29.13]
[1725517392084,0.05581683,131.96,131.93,0.05562753]
[1725517392289,29.13,132.03,131.93,0.05562753]
[1725517392490,29.13,132.03,131.93,29.13]
[1725517392786,32.9174,132.03,131.99,3.7883]
[1725517392992,29.13,132.03,131.99,3.7883]
[1725517393491,0.05727421,132.02,132.0,0.04793377]
[1725517393690,0.04920083,132.02,132.0,0.04833956]
[1725517394490,3.83670083,132.02,132.0,0.04833956]
[1725517394795,29.13,132.01,132.0,0.04833956]
[1725517394990,32.9177,132.01,132.0,0.04833956]
[1725517396184,0.04920083,132.02,132.0,0.04833956]
[1725517397295,29.13,132.01,132.0,0.04833956]
[1725517397693,29.13,132.01,131.92,2.8169]
[1725517397888,1.328,132.04,131.92,2.8169]
[1725517397889,29.13,131.97,131.92,1.4196]
[1725517398397,32.919,131.97,131.92,1.4196]
[1725517398595,0.05240486,131.96,131.93,0.0519808]
[1725517398900,0.05240486,131.96,131.93,3.8419808]
[1725517399495,3.84160486,131.96,131.93,3.8419808]
[1725517401204,3.7895,131.95,131.93,0.0519808]
[1725517401403,0.05240486,131.96,131.93,0.0519808]
[1725517402497,3.84170486,131.96,131.93,3.8419808]
[1725517402798,3.7896,131.95,131.93,0.0519808]
[1725517402988,29.13,131.95,131.93,0.0519808]
[1725517403394,3.7897,131.94,131.93,0.0519808]
[1725517405601,3.7904,131.92,131.88,3.7914]
[1725517405801,3.7904,131.92,131.86,1.3535]
[1725517406503,0.05477674,131.9,131.88,0.05165138]
[1725517407198,3.7912,131.89,131.88,0.05165138]
[1725517407900,3.84577674,131.9,131.88,0.05165138]
[1725517408298,0.05477674,131.9,131.88,0.05165138]
[1725517409298,3.7912,131.89,131.88,0.05165138]
[1725517409900,32.9212,131.89,131.88,0.05165138]
[1725517410402,3.84567674,131.9,131.88,0.05165138]
[1725517410607,0.05477674,131.9,131.88,0.05165138]
[1725517411900,3.7912,131.89,131.88,0.05165138]
[1725517412103,0.05477674,131.9,131.88,0.05165138]
[1725517412495,3.7912,131.89,131.88,0.05165138]
[1725517414199,3.7912,131.89,131.83,1.4016]
[1725517414200,3.7926,131.84,131.83,1.4016]
[1725517414404,29.13,131.89,131.79,29.13]
[1725517414909,29.13,131.89,131.8,1.3585]
[1725517415206,0.04942464,131.86,131.83,0.05804368]
[1725517416107,0.04942464,131.86,131.83,3.85094368]
[1725517416501,0.04942464,131.86,131.84,3.7926]
[1725517416802,0.04942464,131.86,131.83,0.05804368]
[1725517417707,0.04942464,131.86,131.83,3.85094368]
[1725517417902,0.04942464,131.86,131.83,0.05804368]
[1725517418611,0.04942464,131.86,131.83,3.85084368]
[1725517420206,0.04942464,131.86,131.83,0.05804368]
[1725517420712,0.04942464,131.86,131.84,3.7924]
[1725517421206,3.7911,131.9,131.83,0.05804368]
[1725517421414,28.42829508,131.92,131.82,23.3]
[1725517422209,0.05657677,131.88,131.86,3.84374763]
[1725517423612,0.05657677,131.88,131.86,0.05174763]
[1725517424710,3.84827677,131.88,131.86,0.05174763]
[1725517425911,0.05657677,131.88,131.86,0.05174763]
[1725517426415,3.84807677,131.88,131.86,0.05174763]
[1725517426614,0.05657677,131.88,131.86,0.05174763]
[1725517427011,3.7918,131.87,131.86,0.05174763]
[1725517427711,3.84817677,131.88,131.86,0.05174763]
[1725517428116,0.05657677,131.88,131.86,0.05174763]
[1725517428622,3.7918,131.87,131.86,0.05174763]
[1725517435717,23.3,131.87,131.8,2.7425]
[1725517435912,23.3,131.85,131.8,2.7425]
[1725517436120,46.6,131.81,131.61,13.9901534]
[1725517436318,22.75,131.87,131.66,1.3633]
[1725517436319,26.027,131.8,131.66,1.3633]
[1725517436519,3.795,131.76,131.66,1.3633]
[1725517436818,2.727,131.8,131.69,23.3]
[1725517437123,0.05133954,131.76,131.73,0.05768876]
[1725517437319,23.35133954,131.76,131.73,0.05768876]
[1725517437523,23.3,131.74,131.73,0.05768876]
[1725517437825,29.19949203,131.8,131.66,1.3633]
[1725517438016,29.19949203,131.8,131.66,5.1609]
[1725517438218,23.3,131.78,131.66,1.3633]
[1725517438618,6.44949203,131.8,131.66,1.3633]
[1725517438619,23.3,131.79,131.7,23.3]
[1725517438921,3.76802246,131.91,131.73,23.3]
[1725517439123,23.3,131.82,131.74,1.3747]
[1725517439323,1.375,131.9,131.71,2.7725]
[1725517439324,23.3,131.75,131.71,2.7725]
[1725517439524,22.75,131.78,131.63,1.3747]
[1725517439725,24.125,131.77,131.63,1.3747]
[1725517440025,24.125,131.77,131.62,26.0002]
[1725517440026,24.125,131.77,131.64,23.3]
[1725517440225,23.3,131.7,131.65,1.3747]
[1725517440429,3.85316225,131.71,131.65,1.3747]
[1725517440726,23.3,131.72,131.65,1.3747]
[1725517441122,0.05211979,131.7,131.67,0.05644427]
[1725517441325,3.78304378,131.7,131.67,0.05644427]
[1725517441516,23.3,131.68,131.46,3.72712778]
[1725517441717,23.3,131.64,131.54,29.8549]
[1725517442016,23.3,131.64,131.54,2.7538]
[1725517442220,23.3,131.64,131.54,26.0538]
[1725517442221,3.88125427,131.63,131.54,26.0538]
[1725517442430,1.3286,131.67,131.55,1.3293]
[1725517442431,23.3,131.61,131.55,1.3293]
[1725517443123,23.3,131.65,131.55,1.3293]
[1725517443323,1.4259,131.66,131.55,1.3293]
[1725517443324,23.3,131.63,131.55,1.3293]
[1725517443531,27.03450923,131.63,131.55,1.3293]
[1725517443725,3.73450923,131.63,131.58,0.05728989]
[1725517443930,0.05456831,131.6,131.58,0.05728989]
[1725517445223,3.85436831,131.6,131.58,0.05728989]
[1725517445622,0.05456831,131.6,131.58,0.05728989]
[1725517446030,3.85436831,131.6,131.58,0.05728989]
[1725517446627,0.05456831,131.6,131.58,0.05728989]
[1725517447328,3.81796061,131.59,131.58,0.05728989]
[1725517447528,0.05456831,131.6,131.58,0.05728989]
[1725517449332,7.70730024,131.6,131.58,0.05728989]
[1725517449534,29.2,131.59,131.58,0.05728989]
[1725517449729,0.05456831,131.6,131.58,0.05728989]
[1725517450731,29.2,131.59,131.51,1.3198]
[1725517450930,29.2,131.55,131.5,1.4062]
[1725517451438,3.79505703,131.63,131.47,30.548]
[1725517451626,2.6718,131.66,131.48,1.4062]
[1725517451933,0.05052684,131.58,131.56,0.04948371]
[1725517452135,33.09488895,131.57,131.56,0.04948371]
[1725517452326,29.2,131.57,131.49,1.3612]
[1725517452531,2.7763,131.59,131.49,1.3612]
[1725517452737,30.5995,131.59,131.49,1.3612]
[1725517452938,34.3996,131.59,131.49,1.3612]
[1725517453139,29.2,131.59,131.49,1.3612]
[1725517453338,29.2,131.67,131.49,1.3612]
[1725517453339,0.04991645,131.55,131.53,29.24894557]
[1725517453532,0.05342892,131.55,131.54,1.3527]
[1725517454232,29.2,131.62,131.54,1.3527]
[1725517454626,29.2,131.62,131.49,1.3612]
[1725517454627,29.2,131.6,131.55,1.3085]
[1725517454831,29.2,131.6,131.5,1.3527]
[1725517455025,29.2,131.6,131.5,2.6612]
[1725517455233,0.05153998,131.56,131.54,0.0513017]
[1725517456138,29.25153998,131.56,131.54,0.0513017]
[1725517457127,0.05153998,131.56,131.54,0.0513017]
[1725517457530,3.85243998,131.56,131.54,0.0513017]
[1725517458328,3.85233998,131.56,131.54,0.0513017]
[1725517459126,3.801,131.55,131.54,0.0513017]
[1725517459337,29.25153998,131.56,131.47,3.8031]
[1725517459536,3.8019,131.52,131.47,3.8031]
[1725517459935,3.8019,131.52,131.46,3.8035]
[1725517460135,3.8019,131.52,131.45,4.1126]
[1725517460432,0.05558142,131.5,131.47,0.05341324]
[1725517461032,3.8027,131.49,131.47,0.05341324]
[1725517461237,29.2,131.49,131.27,226.0]
[1725517461439,0.05558142,131.5,131.35,31.9513]
[1725517461440,29.2,131.46,131.35,31.9513]
[1725517461642,3.8042,131.44,131.36,3.81535885]
[1725517461834,29.2,131.46,131.36,3.81535885]
[1725517462033,29.2,131.46,131.35,31.9513]
[1725517462230,29.2,131.43,131.35,2.7513]
[1725517462431,0.05254774,131.42,131.39,0.05217505]
[1725517463231,0.05254774,131.42,131.39,3.85747505]
[1725517463535,0.05254774,131.42,131.39,0.05217505]
[1725517463839,0.05254774,131.42,131.4,3.8051]
[1725517464234,0.05254774,131.42,131.41,3.805]
[1725517464436,0.05254774,131.42,131.4,1.3301]
[1725517465931,3.8033,131.47,131.41,3.805]
[1725517466137,3.8033,131.47,131.42,1.3288]
[1725517466339,3.8033,131.47,131.42,5.1335]
[1725517466535,3.8036,131.46,131.42,1.3288]
[1725517466737,29.2,131.48,131.42,1.3288]
[1725517466940,29.2,131.44,131.35,1.41]
[1725517467132,29.2,131.43,131.38,0.04998924]
[1725517467337,29.2,131.39,131.3,3.75780179]
[1725517467537,0.05212677,131.36,131.33,0.04981611]
[1725517470944,29.2,131.35,131.33,0.04981611]
[1725517471147,33.03408242,131.35,131.26,1.3288]
[1725517471447,29.2,131.41,131.26,1.3288]
[1725517471448,29.2,131.32,131.26,1.3288]
[1725517471644,3.78198294,131.42,131.26,1.3288]
[1725517471850,29.2,131.36,131.25,29.2]
[1725517472045,33.0065,131.36,131.28,3.8085]
[1725517472248,29.2,131.32,131.31,0.04845697]
[1725517472546,29.2,131.32,131.23,1.3031]
[1725517472743,33.04322388,131.34,131.24,1.323]
[1725517472944,1.4179,131.4,131.24,1.323]
[1725517472945,29.2,131.32,131.24,1.323]
[1725517473147,29.2,131.34,131.24,5.08356981]
[1725517473446,0.05178675,131.3,131.24,1.323]
[1725517473651,0.05178675,131.3,131.25,3.8097]
[1725517473848,0.05178675,131.3,131.24,1.323]
[1725517474048,0.05178675,131.3,131.25,3.8094]
[1725517474341,0.05178675,131.3,131.24,1.323]
[1725517474547,29.25178675,131.3,131.24,1.323]
[1725517474748,29.25178675,131.3,131.25,3.8097]
[1725517475159,29.25178675,131.3,131.24,1.323]
[1725517475450,29.25178675,131.3,130.99,27.98030681]
[1725517475451,29.2,131.26,131.18,1.3804]
[1725517475655,0.05127433,131.24,131.18,1.3804]
[1725517476450,0.05127433,131.24,131.2,3.8311]
[1725517476647,0.05127433,131.24,131.2,0.02]
[1725517477041,0.05127433,131.24,131.21,3.8105]
[1725517477454,0.05127433,131.24,131.2,0.02]
[1725517478152,0.05127433,131.24,131.23,3.8102]
[1725517478849,3.8083,131.3,131.25,3.8096]
[1725517479055,29.2,131.31,131.25,3.8096]
[1725517479256,29.2,131.31,131.21,2.7269]
[1725517479647,2.7054,131.33,131.21,2.7269]
[1725517479855,0.0583918,131.28,131.26,0.05369725]
[1725517480156,0.04944091,131.28,131.26,0.05369725]
[1725517481150,33.13286948,131.28,131.2,0.02]
[1725517481450,29.2,131.25,131.2,0.02]
[1725517482253,29.2,131.21,131.03,8.40356262]
[1725517482454,29.2,131.21,131.12,1.3526]
[1725517482957,29.2,131.21,131.13,1.4014]
[1725517482958,0.05019991,131.18,131.13,1.4014]
[1725517483153,0.05019991,131.18,131.12,1.3526]
[1725517484055,0.05019991,131.18,131.13,1.4204]
[1725517485057,0.05019991,131.18,131.13,30.6204]
[1725517485249,0.05019991,131.18,131.13,1.4204]
[1725517485850,0.05019991,131.18,131.15,3.8125]
[1725517486051,0.05019991,131.18,131.13,1.4204]
[1725517486950,0.05019991,131.18,131.15,3.8125]
[1725517487461,0.05019991,131.18,131.13,1.4204]
[1725517487662,0.05019991,131.18,131.14,3.8126]
[1725517488053,0.05019991,131.18,131.13,1.4204]
[1725517488256,0.05019991,131.18,131.17,3.812]
[1725517488451,0.05019991,131.18,131.13,1.4204]
[1725517488856,0.05019991,131.18,131.17,3.812]
[1725517491270,0.05019991,131.18,131.13,1.4204]
[1725517491559,0.05019991,131.18,131.16,3.812]
[1725517492361,0.05019991,131.18,131.15,3.8125]
[1725517492568,0.05019991,131.18,131.13,1.4204]
[1725517492764,0.05019991,131.18,131.17,3.812]
[1725517493169,0.05019991,131.18,131.13,1.4204]
[1725517493361,0.05019991,131.18,131.12,1.3526]
[1725517493665,29.2,131.17,131.12,1.3526]
[1725517493858,0.05019991,131.18,131.12,3.8134]
[1725517494064,29.2,131.16,131.09,1.3448]
[1725517494275,0.04918482,131.14,131.09,1.3448]
[1725517494765,29.2,131.12,131.01,1.3221]
[1725517495072,29.2,131.12,131.02,4.06280536]
[1725517495073,0.05813738,131.08,131.02,4.06280536]
[1725517495267,0.05813738,131.08,131.03,1.40180536]
[1725517495565,0.05813738,131.08,131.04,3.8155]
[1725517495978,0.05813738,131.08,131.02,2.661]
[1725517496269,3.87299771,131.13,130.88,8.40609181]
[1725517496270,29.2,131.13,130.88,8.40609181]
[1725517496484,29.2,131.13,131.02,29.2]
[1725517496666,29.2,131.13,131.03,4.19115148]
[1725517496967,33.0132,131.13,131.03,2.7891]
[1725517497365,0.05440179,131.09,131.07,0.04957017]
[1725517497565,2.6495,131.17,131.07,29.2]
[1725517497760,29.2,131.18,131.12,3.8134]
[1725517497965,29.2,131.16,131.03,2.7891]
[1725517498160,29.2,131.16,131.04,30.60168397]
[1725517498364,29.2,131.16,131.1,3.8138]
[1725517498668,0.05134792,131.14,131.12,0.04888662]
[1725517498871,0.05083347,131.14,131.12,0.05585998]